fUSD/lending_fUSD_20260607
["ID","MTS","AMOUNT","RATE_DAILY","PERIOD"]
[424408040,1780843842000,-2157.14243826,0.00020675,2]
[424408062,1780843842000,-7121.73546971,0.00021,2]
[424408053,1780843842000,-1400.0,0.00021,2]
[424408078,1780843842000,-225.18697532,0.00021223,2]
[424408067,1780843842000,-799.0,0.00021,2]
[424408066,1780843842000,-703.0,0.00021,2]
[424408068,1780843842000,-1776.0,0.00021,2]
[424408079,1780843842000,-187.78006524,0.00021223,2]
[424408073,1780843842000,-151.1563446,0.00021048,2]
[424408076,1780843842000,-225.18697532,0.00021223,2]
[424408077,1780843842000,-200.0,0.00021223,2]
[424408071,1780843842000,-292.0,0.00021,2]
[424408074,1780843842000,-150.66997503,0.00021048,2]
[424408080,1780843842000,-151.0,0.00021223,2]
[424408069,1780843842000,-613.0,0.00021,2]
[424408072,1780843842000,-341.0,0.00021,2]
[424408075,1780843842000,-225.18697532,0.00021223,2]
[424408042,1780843842000,-1481.2378076,0.00020675,2]
[424408055,1780843842000,-596.0,0.00021,2]
[424408039,1780843842000,-151.0,0.00020675,2]
[424408026,1780843842000,-19780.80452379,0.00020452,2]
[424408041,1780843842000,-151.0,0.00020675,2]
[424408082,1780843842000,-225.18697532,0.00021223,2]
[424408010,1780843842000,-151.0,0.00020127,2]
[424408012,1780843842000,-151.0,0.00020127,2]
[424408011,1780843842000,-151.0,0.00020127,2]
[424408015,1780843842000,-151.0,0.00020127,2]
[424408014,1780843842000,-151.0,0.00020127,2]
[424408016,1780843842000,-151.0,0.00020127,2]
[424408017,1780843842000,-193.0,0.00020127,2]
[424408013,1780843842000,-151.0,0.00020127,2]
[424408018,1780843842000,-719.04747942,0.00020182,2]
[424408020,1780843842000,-745.65223615,0.00020237,2]
[424408031,1780843842000,-217.15233878,0.00020675,2]
[424408030,1780843842000,-151.0,0.00020622,2]
[424408032,1780843842000,-200.0,0.00020675,2]
[424408043,1780843842000,-200.0,0.00020675,2]
[424408019,1780843842000,-151.0,0.00020182,2]
[424408021,1780843842000,-151.0,0.00020237,2]
[424408027,1780843842000,-151.0,0.00020457,2]
[424408023,1780843842000,-151.0,0.00020292,2]
[424408022,1780843842000,-408.68701427,0.00020292,2]
[424408025,1780843842000,-151.0,0.00020402,2]
[424408028,1780843842000,-151.0,0.00020512,2]
[424408029,1780843842000,-151.0,0.00020567,2]
[424408035,1780843842000,-181.08010149,0.00020675,2]
[424408037,1780843842000,-151.0,0.00020675,2]
[424408033,1780843842000,-217.15233878,0.00020675,2]
[424408045,1780843842000,-183.83981473,0.00020892,5]
[424408044,1780843842000,-151.0,0.00020677,2]
[424408036,1780843842000,-217.15233878,0.00020675,2]
[424408034,1780843842000,-217.15233878,0.00020675,2]
[424408024,1780843842000,-151.0,0.00020347,2]
[424408092,1780843842000,-200.0,0.00021379,2]
[424408070,1780843842000,-798.0,0.00021,2]
[424408093,1780843842000,-1500.0,0.00021434,2]
[424408115,1780843842000,-151.0,0.00021771,2]
[424408118,1780843842000,-1592.87721992,0.00021771,2]
[424408123,1780843842000,-168.68,0.00021918,2]
[424408122,1780843842000,-5000.0,0.00021918,2]
[424408126,1780843842000,-410.0,0.00022,2]
[424408124,1780843842000,-150.0,0.00021918,2]
[424408133,1780843842000,-762.0,0.00022,2]
[424408125,1780843842000,-613.76538141,0.00021999,2]
[424408129,1780843842000,-1400.0,0.00022,2]
[424408131,1780843842000,-520.0,0.00022,2]
[424408128,1780843842000,-11040.13,0.00022,2]
[424408127,1780843842000,-479.0,0.00022,2]
[424408130,1780843842000,-596.0,0.00022,2]
[424408132,1780843842000,-608.0,0.00022,2]
[424408140,1780843842000,-162.0,0.00022,2]
[424408142,1780843842000,-269.70661743,0.00022173,30]
[424408141,1780843842000,-341.0,0.00022,2]
[424408139,1780843842000,-292.0,0.00022,2]
[424408146,1780843842000,-5598.5647075,0.00022316,2]
[424408144,1780843842000,-152.0,0.00022244,4]
[424408143,1780843842000,-152.0,0.00022205,3]
[424408145,1780843842000,-501.0,0.00022281,2]
[424408137,1780843842000,-613.0,0.00022,2]
[424408134,1780843842000,-703.0,0.00022,2]
[424408136,1780843842000,-1776.0,0.00022,2]
[424408135,1780843842000,-799.0,0.00022,2]
[424408148,1780843842000,-38369.3103606,0.00022316,2]
[424408147,1780843842000,-1808.5806492,0.00022316,2]
[424408094,1780843842000,-3554.0,0.00021435,2]
[424408117,1780843842000,-2319.72410669,0.00021771,2]
[424408116,1780843842000,-151.0,0.00021771,2]
[424408138,1780843842000,-798.0,0.00022,2]
[424408112,1780843842000,-500.0,0.00021771,2]
[424408081,1780843842000,-500.0,0.00021223,2]
[424408120,1780843842000,-500.0,0.00021902,2]
[424408083,1780843842000,-151.0,0.00021223,2]
[424408085,1780843842000,-151.0,0.00021223,2]
[424408084,1780843842000,-2236.95670847,0.00021223,2]
[424408087,1780843842000,-200.0,0.00021223,2]
[424408090,1780843842000,-269.70661743,0.00021351,10]
[424408086,1780843842000,-1536.04360648,0.00021223,2]
[424408091,1780843842000,-179.80441163,0.00021356,10]
[424408089,1780843842000,-434.17,0.00021273,2]
[424408095,1780843842000,-1358.0,0.00021435,2]
[424408100,1780843842000,-419.0,0.00021435,2]
[424408102,1780843842000,-217.15233878,0.00021496,2]
[424408103,1780843842000,-160.0,0.00021496,2]
[424408098,1780843842000,-3642.0,0.00021435,2]
[424408088,1780843842000,-662.64,0.00021273,2]
[424408097,1780843842000,-1274.0,0.00021435,2]
[424408096,1780843842000,-382.0,0.00021435,2]
[424408110,1780843842000,-233.5188934,0.00021771,2]
[424408108,1780843842000,-233.5188934,0.00021771,2]
[424408114,1780843842000,-151.0,0.00021771,2]
[424408111,1780843842000,-194.72792766,0.00021771,2]
[424408121,1780843842000,-2000.0,0.00021902,2]
[424408119,1780843842000,-200.0,0.00021771,2]
[424408105,1780843842000,-4473.77,0.0002169,2]
[424408107,1780843842000,-233.5188934,0.00021771,2]
[424408109,1780843842000,-200.0,0.00021771,2]
[424408101,1780843842000,-156.587,0.00021496,2]
[424408106,1780843842000,-498.95651695,0.00021769,2]
[424408104,1780843842000,-152.0,0.00021666,3]
[424408113,1780843842000,-233.5188934,0.00021771,2]
[424408182,1780843843000,-1712.93078311,0.00022867,2]
[424408183,1780843843000,-200.0,0.00022867,2]
[424408186,1780843843000,-1400.0,0.00023,2]
[424408174,1780843843000,-251.11897888,0.00022867,2]
[424408179,1780843843000,-151.0,0.00022867,2]
[424408181,1780843843000,-2494.55939288,0.00022867,2]
[424408184,1780843843000,-410.0,0.00023,2]
[424408188,1780843843000,-520.0,0.00023,2]
[424408191,1780843843000,-703.0,0.00023,2]
[424408198,1780843843000,-200.0,0.00023274,2]
[424408190,1780843843000,-762.0,0.00023,2]
[424408196,1780843843000,-292.0,0.00023,2]
[424408194,1780843843000,-613.0,0.00023,2]
[424408197,1780843843000,-341.0,0.00023,2]
[424408187,1780843843000,-596.0,0.00023,2]
[424408189,1780843843000,-608.0,0.00023,2]
[424408192,1780843843000,-799.0,0.00023,2]
[424408193,1780843843000,-1776.0,0.00023,2]
[424408195,1780843843000,-798.0,0.00023,2]
[424408211,1780843843000,-151.0,0.00023415,2]
[424408200,1780843843000,-407.26698992,0.00023302,2]
[424408201,1780843843000,-152.0,0.00023321,4]
[424408180,1780843843000,-151.0,0.00022867,2]
[424408205,1780843843000,-260.4103811,0.00023415,2]
[424408199,1780843843000,-150.0,0.00023288,2]
[424408178,1780843843000,-151.0,0.00022867,2]
[424408164,1780843843000,-1415.86,0.00022466,2]
[424408175,1780843843000,-209.40437684,0.00022867,2]
[424408207,1780843843000,-260.4103811,0.00023415,2]
[424408149,1780843843000,-242.15909246,0.00022319,2]
[424408150,1780843843000,-242.15909246,0.00022319,2]
[424408159,1780843843000,-2405.55389863,0.00022319,2]
[424408152,1780843843000,-242.15909246,0.00022319,2]
[424408151,1780843843000,-200.0,0.00022319,2]
[424408158,1780843843000,-151.0,0.00022319,2]
[424408156,1780843843000,-151.0,0.00022319,2]
[424408157,1780843843000,-151.0,0.00022319,2]
[424408154,1780843843000,-500.0,0.00022319,2]
[424408153,1780843843000,-201.93286098,0.00022319,2]
[424408155,1780843843000,-242.15909246,0.00022319,2]
[424408177,1780843843000,-251.11897888,0.00022867,2]
[424408161,1780843843000,-200.0,0.00022319,2]
[424408167,1780843843000,-162.380719,0.00022865,2]
[424408168,1780843843000,-225.18697532,0.00022865,2]
[424408169,1780843843000,-160.0,0.00022865,2]
[424408165,1780843843000,-168.32,0.00022603,2]
[424408160,1780843843000,-1651.81367706,0.00022319,2]
[424408163,1780843843000,-827.92,0.00022466,2]
[424408166,1780843843000,-152.0,0.00022821,5]
[424408171,1780843843000,-251.11897888,0.00022867,2]
[424408172,1780843843000,-251.11897888,0.00022867,2]
[424408162,1780843843000,-19780.80452379,0.00022368,2]
[424408173,1780843843000,-200.0,0.00022867,2]
[424408176,1780843843000,-500.0,0.00022867,2]
[424408170,1780843843000,-599.60298507,0.00022866,2]
[424408203,1780843843000,-152.0,0.00023398,6]
[424408185,1780843843000,-479.0,0.00023,2]
[424408212,1780843843000,-151.0,0.00023415,2]
[424408239,1780843843000,-479.0,0.00024,2]
[424408243,1780843843000,-608.0,0.00024,2]
[424408252,1780843843000,-1507.75,0.00024,7]
[424408242,1780843843000,-520.0,0.00024,2]
[424408254,1780843843000,-168.14885327,0.00024077,2]
[424408253,1780843843000,-200.0,0.00024044,2]
[424408245,1780843843000,-190.334213,0.00024,2]
[424408246,1780843843000,-703.0,0.00024,2]
[424408247,1780843843000,-799.0,0.00024,2]
[424408251,1780843843000,-292.0,0.00024,2]
[424408206,1780843843000,-200.0,0.00023415,2]
[424408248,1780843843000,-1776.0,0.00024,2]
[424408249,1780843843000,-613.0,0.00024,2]
[424408250,1780843843000,-798.0,0.00024,2]
[424408255,1780843843000,-168.3888056,0.00024234,2]
[424408257,1780843843000,-187.70426596,0.00024234,2]
[424408260,1780843843000,-1358.0,0.00024435,2]
[424408259,1780843843000,-3554.0,0.00024435,2]
[424408261,1780843843000,-382.0,0.00024435,2]
[424408256,1780843843000,-233.5188934,0.00024234,2]
[424408258,1780843843000,-19780.80452379,0.00024283,2]
[424408262,1780843843000,-1274.0,0.00024435,2]
[424408263,1780843843000,-3642.0,0.00024435,2]
[424408264,1780843843000,-419.0,0.00024435,2]
[424408265,1780843843000,-152.0,0.00024437,5]
[424408238,1780843843000,-410.0,0.00024,2]
[424408241,1780843843000,-596.0,0.00024,2]
[424408244,1780843843000,-762.0,0.00024,2]
[424408234,1780843843000,-2682.57183977,0.00023963,2]
[424408237,1780843843000,-152.0,0.00023975,7]
[424408208,1780843843000,-217.15233878,0.00023415,2]
[424408204,1780843843000,-260.4103811,0.00023415,2]
[424408202,1780843843000,-260.89922623,0.00023397,2]
[424408210,1780843843000,-260.4103811,0.00023415,2]
[424408209,1780843843000,-500.0,0.00023415,2]
[424408215,1780843843000,-151.0,0.00023415,2]
[424408217,1780843843000,-2586.85809042,0.00023415,2]
[424408219,1780843843000,-200.0,0.00023415,2]
[424408218,1780843843000,-1776.30922209,0.00023415,2]
[424408226,1780843843000,-200.0,0.00023963,2]
[424408222,1780843843000,-176.0,0.00023867,2]
[424408223,1780843843000,-180.0,0.00023936,2]
[424408221,1780843843000,-150.0,0.0002375,2]
[424408220,1780843843000,-168.14885327,0.00023615,2]
[424408225,1780843843000,-270.0455652,0.00023963,2]
[424408233,1780843843000,-151.0,0.00023963,2]
[424408236,1780843843000,-200.0,0.00023963,2]
[424408232,1780843843000,-151.0,0.00023963,2]
[424408235,1780843843000,-1842.0326633,0.00023963,2]
[424408240,1780843843000,-1400.0,0.00024,2]
[424408231,1780843843000,-151.0,0.00023963,2]
[424408230,1780843843000,-163.47518123,0.00023963,2]
[424408228,1780843843000,-225.18697532,0.00023963,2]
[424408227,1780843843000,-270.0455652,0.00023963,2]
[424408224,1780843843000,-270.0455652,0.00023963,2]
[424408229,1780843843000,-500.0,0.00023963,2]
[424408281,1780843844000,-168.68,0.00024658,8]
[424408282,1780843844000,-1000.0,0.00024658,2]
[424408284,1780843844000,-300.0,0.00024658,14]
[424408283,1780843844000,-150.0,0.00024658,2]
[424408285,1780843844000,-500.0,0.00024658,2]
[424408288,1780843844000,-2000.0,0.00024706,2]
[424408290,1780843844000,-8495.0,0.00024764,7]
[424408289,1780843844000,-400.0,0.00024758,2]
[424408291,1780843844000,-200.0,0.00024813,2]
[424408280,1780843844000,-777.0,0.00024653,10]
[424408287,1780843844000,-500.0,0.00024706,2]
[424408286,1780843844000,-512.72709505,0.00024658,2]
[424408273,1780843844000,-151.0,0.00024511,2]
[424408277,1780843844000,-321.31376078,0.00024511,2]
[424408279,1780843844000,-152.0,0.00024553,8]
[424408275,1780843844000,-2781.82699784,0.00024511,2]
[424408276,1780843844000,-1910.18787185,0.00024511,2]
[424408270,1780843844000,-233.5188934,0.00024511,2]
[424408274,1780843844000,-151.0,0.00024511,2]
[424408268,1780843844000,-200.0,0.00024511,2]
[424408266,1780843844000,-280.03725111,0.00024511,2]
[424408272,1780843844000,-151.0,0.00024511,2]
[424408267,1780843844000,-280.03725111,0.00024511,2]
[424408269,1780843844000,-280.03725111,0.00024511,2]
[424408271,1780843844000,-500.0,0.00024511,2]
[424408278,1780843844000,-168.14885327,0.00024538,2]
[424408292,1780843844000,-206.0,0.00024815,2]
[424408295,1780843844000,-500.0,0.00024923,2]
[424408294,1780843844000,-500.0,0.00024923,2]
[424408318,1780843844000,-226.61191918,0.00019895,2]
[424408319,1780843844000,-242.86808082,0.00019895,2]
[424408320,1780843844000,-169.37816199,0.00024,2]
[424408317,1780843844000,-469.48,0.00014211,2]
[424408314,1780843844000,-307.41,0.00025,2]
[424408316,1780843844000,-23884.46363309,0.00025,2]
[424408313,1780843844000,-307.41,0.00025,2]
[424408315,1780843844000,-307.41,0.00025,2]
[424408311,1780843844000,-307.41,0.00025,2]
[424408310,1780843844000,-307.41,0.00025,2]
[424408303,1780843844000,-712.0,0.00025,2]
[424408308,1780843844000,-292.0,0.00025,2]
[424408312,1780843844000,-307.41,0.00025,2]
[424408307,1780843844000,-812.0,0.00025,2]
[424408306,1780843844000,-620.0,0.00025,2]
[424408297,1780843844000,-494.9507705,0.00025,2]
[424408296,1780843844000,-422.84077253,0.00025,2]
[424408299,1780843844000,-602.0,0.00025,2]
[424408301,1780843844000,-610.0,0.00025,2]
[424408302,1780843844000,-774.0,0.00025,2]
[424408293,1780843844000,-1507.75,0.000249,7]
[424408309,1780843844000,-168.14885327,0.00025,2]
[424408300,1780843844000,-536.0,0.00025,2]
[424408298,1780843844000,-1402.0,0.00025,2]
[424408305,1780843844000,-1779.44,0.00025,2]
[424408304,1780843844000,-806.0,0.00025,2]
[424408322,1780843845000,-1212.84489362,0.00018435,2]
[424408329,1780843917000,298.73,0.00030137,120]
[424408330,1780843957000,301.38,0.0003013,120]
[424408331,1780844110000,166.0,0.00023106,120]
[424408332,1780844112000,166.0,0.00024261,120]
[424408333,1780844114000,166.0,0.00025474,120]
[424408334,1780844115000,166.0,0.00026748,120]
[424408335,1780844116000,166.0,0.00028085,120]
[424408336,1780844118000,166.0,0.00029489,120]
[424408337,1780844130000,181.0,0.00022066,120]
[424408338,1780844132000,181.0,0.00023169,120]
[424408339,1780844187000,10000.0,0.00030137,120]
[424408340,1780844403000,169.0,0.0002499,120]
[424408342,1780844444000,202.36,0.00029452,120]
[424408343,1780844677000,150.0,0.00012375,120]
[424408354,1780844868000,1000.0,0.00029452,120]
[424408370,1780845032000,-250.0,0.00011872,2]
[424408368,1780845032000,-109.84232567,0.00011254,2]
[424408369,1780845032000,-500.0,0.00011254,2]
[424408367,1780845032000,-390.15767433,0.00011254,2]
[424408366,1780845032000,-150.0,0.00011254,2]
[424408360,1780845032000,-260.89922623,0.00011139,2]
[424408365,1780845032000,-286.80281002,0.00011139,2]
[424408371,1780845032000,-150.0,0.00012,2]
[424408391,1780845032000,-452.34929037,0.00012598,2]
[424408358,1780845032000,-1604.2,0.00011039,2]
[424408363,1780845032000,-310.55827694,0.00011139,2]
[424408364,1780845032000,-633.25963,0.00011139,2]
[424408359,1780845032000,-992.50300807,0.00011039,2]
[424408357,1780845032000,-1997.86120998,0.00011039,2]
[424408356,1780845032000,-250.0,0.00010966,2]
[424408355,1780845032000,-200.0,0.00010793,2]
[424408362,1780845032000,-936.53145006,0.00011139,2]
[424408361,1780845032000,-1014.84783298,0.00011139,2]
[424408374,1780845032000,-250.0,0.00012252,2]
[424408372,1780845032000,-998.44,0.00012096,2]
[424408388,1780845032000,-5007.1277,0.00012598,2]
[424408389,1780845032000,-26955.58303491,0.00012598,2]
[424408390,1780845032000,-1197.0,0.00012598,2]
[424408387,1780845032000,-2500.0,0.00012598,2]
[424408385,1780845032000,-167.875,0.00012597,2]
[424408386,1780845032000,-193.0,0.00012598,2]
[424408382,1780845032000,-800.0,0.00012531,2]
[424408377,1780845032000,-300.0,0.00012377,2]
[424408384,1780845032000,-2280.549,0.00012597,2]
[424408381,1780845032000,-182987.52964211,0.00012498,2]
[424408380,1780845032000,-494.97495455,0.00012498,2]
[424408378,1780845032000,-150.0,0.00012497,2]
[424408379,1780845032000,-4640.26350334,0.00012498,2]
[424408375,1780845032000,-756.57846353,0.00012269,2]
[424408376,1780845032000,-150.0,0.00012375,2]
[424408373,1780845032000,-212.34,0.00012128,2]
[424408383,1780845032000,-215.83393831,0.00012547,2]
[424408406,1780845037000,-319.40710994,0.00012598,2]
[424408405,1780845037000,-215.83393831,0.00012551,2]
[424408408,1780845037000,-611.30959117,0.00012598,2]
[424408409,1780845037000,-1030.32227753,0.00012598,2]
[424408407,1780845037000,-2145.0,0.00012598,2]
[424408411,1780845038000,-5118.8234575,0.00012598,2]
[424408410,1780845038000,-2488.11649926,0.00012598,2]
[424408414,1780845039000,-6496.52811165,0.00012598,2]
[424408413,1780845039000,-20636.23380002,0.00012598,2]
[424408412,1780845039000,-11753.80443313,0.00012598,2]
[424408415,1780845040000,-680.4164515,0.00012598,2]
[424408482,1780845043000,-907.54573595,0.00012598,2]
[424408496,1780845045000,-27593.18949807,0.00012598,2]
[424408495,1780845045000,-450.0,0.00012598,2]
[424408505,1780845310000,1804.03,0.00030104,120]
[424408506,1780845432000,500.0,0.00030137,120]
[424408510,1780845606000,150.0,0.00011641,120]
[424408523,1780846119000,2735.119891,9.977e-05,2]
[424408524,1780846158000,879.26,9.817e-05,2]
[424408526,1780846220000,1767.61,9.782e-05,2]
[424408531,1780846231000,-170.74,0.00010155,2]
[424408530,1780846231000,-236.0,0.00010127,2]
[424408532,1780846231000,-4077.80458676,0.00010179,2]
[424408529,1780846231000,-250.0,0.00010091,2]
[424408538,1780846231000,-163.62,0.00010379,2]
[424408534,1780846231000,-4000.0,0.00010278,2]
[424408533,1780846231000,-244.49186005,0.00010228,7]
[424408535,1780846231000,-182.47402118,0.00010279,2]
[424408528,1780846231000,-4000.0,0.00010027,2]
[424408537,1780846231000,-150.0,0.00010379,2]
[424408539,1780846231000,-182.47402116,0.0001047,2]
[424408540,1780846231000,-2870.542,0.00010486,2]
[424408541,1780846231000,-166.977,0.00010486,2]
[424408543,1780846231000,-150.0,0.000105,2]
[424408542,1780846231000,-150.0,0.000105,2]
[424408546,1780846231000,-182.47402116,0.0001066,2]
[424408545,1780846231000,-4000.0,0.00010529,2]
[424408544,1780846231000,-160.0,0.00010504,2]
[424408536,1780846231000,-530.08181896,0.00010329,2]
[424408575,1780846232000,-500.0,0.00010699,2]
[424408585,1780846232000,-500.0,0.00010699,2]
[424408592,1780846232000,-500.0,0.00010699,2]
[424408579,1780846232000,-500.0,0.00010699,2]
[424408583,1780846232000,-500.0,0.00010699,2]
[424408587,1780846232000,-500.0,0.00010699,2]
[424408594,1780846232000,-500.0,0.00010699,2]
[424408577,1780846232000,-500.0,0.00010699,2]
[424408581,1780846232000,-500.0,0.00010699,2]
[424408573,1780846232000,-500.0,0.00010699,2]
[424408596,1780846232000,-500.0,0.00010699,2]
[424408598,1780846232000,-500.0,0.00010699,2]
[424408600,1780846232000,-500.0,0.00010699,2]
[424408589,1780846232000,-500.0,0.00010699,2]
[424408571,1780846232000,-500.0,0.00010699,2]
[424408553,1780846232000,-500.0,0.00010699,2]
[424408567,1780846232000,-500.0,0.00010699,2]
[424408612,1780846232000,-500.0,0.00010699,2]
[424408548,1780846232000,-500.0,0.00010699,2]
[424408549,1780846232000,-500.0,0.00010699,2]
[424408547,1780846232000,-150.0,0.00010698,2]
[424408550,1780846232000,-500.0,0.00010699,2]
[424408551,1780846232000,-500.0,0.00010699,2]
[424408565,1780846232000,-500.0,0.00010699,2]
[424408552,1780846232000,-500.0,0.00010699,2]
[424408555,1780846232000,-500.0,0.00010699,2]
[424408554,1780846232000,-500.0,0.00010699,2]
[424408558,1780846232000,-500.0,0.00010699,2]
[424408569,1780846232000,-500.0,0.00010699,2]
[424408561,1780846232000,-500.0,0.00010699,2]
[424408563,1780846232000,-410.40437381,0.00010699,2]
[424408556,1780846232000,-500.0,0.00010699,2]
[424408614,1780846232000,-500.0,0.00010699,2]
[424408610,1780846232000,-500.0,0.00010699,2]
[424408643,1780846232000,-163911.64023265,0.000107,2]
[424408634,1780846232000,-500.0,0.00010699,2]
[424408637,1780846232000,-500.0,0.00010699,2]
[424408640,1780846232000,-500.0,0.00010699,2]
[424408639,1780846232000,-500.0,0.00010699,2]
[424408641,1780846232000,-250.0,0.00010699,2]
[424408638,1780846232000,-500.0,0.00010699,2]
[424408633,1780846232000,-500.0,0.00010699,2]
[424408644,1780846232000,-932.0893345,0.000107,2]
[424408645,1780846232000,-12172.58283155,0.000107,2]
[424408647,1780846232000,-4003.62,0.000107,2]
[424408646,1780846232000,-380.68182096,0.000107,2]
[424408649,1780846232000,-674.06681493,0.000107,2]
[424408648,1780846232000,-29174.54265065,0.000107,2]
[424408616,1780846232000,-500.0,0.00010699,2]
[424408642,1780846232000,-102653.86577647,0.000107,2]
[424408626,1780846232000,-500.0,0.00010699,2]
[424408636,1780846232000,-500.0,0.00010699,2]
[424408628,1780846232000,-500.0,0.00010699,2]
[424408606,1780846232000,-350.0,0.00010699,2]
[424408618,1780846232000,-500.0,0.00010699,2]
[424408608,1780846232000,-304.47638696,0.00010699,2]
[424408604,1780846232000,-500.0,0.00010699,2]
[424408602,1780846232000,-500.0,0.00010699,2]
[424408631,1780846232000,-500.0,0.00010699,2]
[424408622,1780846232000,-500.0,0.00010699,2]
[424408624,1780846232000,-178.81296497,0.00010699,2]
[424408620,1780846232000,-500.0,0.00010699,2]
[424408625,1780846232000,-151.16610051,0.00010699,2]
[424408635,1780846232000,-500.0,0.00010699,2]
[424408629,1780846232000,-500.0,0.00010699,2]
[424408632,1780846232000,-500.0,0.00010699,2]
[424408630,1780846232000,-500.0,0.00010699,2]
[424408627,1780846232000,-500.0,0.00010699,2]
[424408688,1780846238000,-170.74,0.00011273,2]
[424408694,1780846238000,-890.99378032,0.00011493,2]
[424408691,1780846238000,-500.0,0.00011307,2]
[424408689,1780846238000,-250.0,0.00011307,2]
[424408699,1780846238000,-200.0,0.00011661,2]
[424408693,1780846238000,-1000.0,0.00011359,2]
[424408696,1780846238000,-80345.82824584,0.00011556,2]
[424408692,1780846238000,-152.52476945,0.00011359,2]
[424408711,1780846238000,-9999.99,0.00012087,2]
[424408700,1780846238000,-255.0,0.00011736,2]
[424408701,1780846238000,-3597.52708281,0.0001178,2]
[424408697,1780846238000,-154.11,0.00011593,2]
[424408698,1780846238000,-150.0,0.00011641,2]
[424408712,1780846238000,-1218.61,0.00012087,2]
[424408702,1780846238000,-500.0,0.00011795,2]
[424408680,1780846238000,-4000.0,0.0001103,2]
[424408695,1780846238000,-500.0,0.00011521,2]
[424408676,1780846238000,-364.1,0.00010989,2]
[424408662,1780846238000,-154.11,0.00010701,2]
[424408682,1780846238000,-250.0,0.00011099,2]
[424408661,1780846238000,-346096.91053828,0.000107,2]
[424408664,1780846238000,-443.14500925,0.0001076,2]
[424408665,1780846238000,-4000.0,0.00010779,2]
[424408663,1780846238000,-170.74,0.00010714,2]
[424408666,1780846238000,-300.0,0.000109,3]
[424408668,1780846238000,-13090.7924506,0.000109,2]
[424408670,1780846238000,-500.0,0.00010973,2]
[424408678,1780846238000,-53984.34337997,0.00011,2]
[424408683,1780846238000,-80345.82824586,0.00011099,2]
[424408685,1780846238000,-403.06,0.0001122,2]
[424408684,1780846238000,-80345.82824584,0.00011099,2]
[424408687,1780846238000,-500.0,0.00011247,2]
[424408686,1780846238000,-843.92,0.00011231,2]
[424408674,1780846238000,-778.17,0.00010989,2]
[424408679,1780846238000,-1767.61,0.00011005,2]
[424408681,1780846238000,-250.0,0.0001103,2]
[424408672,1780846238000,-222.2,0.00010989,2]
[424408714,1780846238000,-1767.61,0.00012228,2]
[424408723,1780846238000,-343.84101979,0.00012389,2]
[424408703,1780846238000,-150.0,0.00011809,2]
[424408730,1780846238000,-500.0,0.00012389,2]
[424408741,1780846238000,-13685.654321,0.0001249,2]
[424408740,1780846238000,-43230.1206564,0.0001249,2]
[424408729,1780846238000,-573.38253937,0.00012389,2]
[424408737,1780846238000,-237256.24056528,0.0001248,2]
[424408738,1780846238000,-2501.99753014,0.0001248,2]
[424408732,1780846238000,-523.06865188,0.00012389,2]
[424408728,1780846238000,-500.0,0.00012389,2]
[424408735,1780846238000,-4368.7972,0.00012446,2]
[424408731,1780846238000,-500.0,0.00012389,2]
[424408739,1780846238000,-154.11,0.00012485,2]